{"text_format":"1","workbook":"xlsx","n_sheets":10,"sheets":["ControlPage","ward one","Outcomes","Over time dashboard","Snapshot dashboard","Charts","Charts for dashboard","DataSummary","Template","Lists"],"not_rendered":{"charts":48,"images":0,"macros":1,"external_links":0,"defined_names":21,"comments":0,"pivot_tables":33},"unopened":[],"bounds":{"document_bytes":16777216,"sheet_cells":100000,"rows_first":2000,"rows_last":500,"rows_between":2000,"halvings":0,"cell_chars":16384,"cell_head_chars":4096},"cells_cut":0,"cells_raw":0,"read":"whole","date_system":"1900"}

{"sheet":"ControlPage","index":0,"n_rows":74,"n_cols":1,"rows_kept":74,"cut":false,"hidden":false,"merged":[[19,0,19,6],[38,0,38,6],[54,0,54,6],[21,0,21,6],[22,0,22,6],[23,0,23,6],[24,0,24,6],[25,0,25,6],[40,0,40,6],[42,0,42,6],[44,0,44,6],[45,0,45,6],[46,0,46,6],[28,0,28,6],[29,0,29,6],[70,0,70,6],[73,0,73,6],[64,0,64,6],[31,0,31,6],[35,0,35,6],[36,0,36,6],[37,0,37,6],[47,0,47,6],[43,0,43,6],[59,0,59,6],[58,0,58,6],[57,0,57,6],[48,0,48,6],[49,0,49,6],[50,0,50,6],[67,0,67,6],[65,0,65,6],[66,0,66,6],[63,0,63,6],[30,0,30,6],[32,0,32,6],[33,0,33,6],[34,0,34,6],[62,0,62,6],[51,0,51,6],[52,0,52,6],[53,0,53,6],[56,0,56,6],[55,0,55,6],[39,0,39,6]]}
["National maternity vital sign system data collection tool"]
["Version 2.1| May 2019"]
[]
["Hospital name"]
["Start date for audits (affects all sheets)"]
[]
[]
[]
[]
[]
[]
["Navigate to:"]
["Outcomes"]
["Charts"]
["Over time dashboard"]
["Snapshot dashboard"]
[]
["Instructions to use this tool"]
["A Setting up the tool"]
["1. Select 'Enable Content' before you start.  This will be a message generated by your Excel programme and will be displayed in a yellow bar at the top of the spreadsheet."]
["On the 'ControlPage' tab:"]
["2. Enter your hospital name in the yellow highlighted field."]
["3. Enter the start date for audits in the yellow highlighted field. This will affect all worksheets in this tool automatically."]
["4. To add a new ward for data collection, click the 'add a new ward' button. You can rename the tab with the ward name. Please note that this spreadsheet has been limited to 15 wards."]
["5. To add a new week to the end of all ward data collection sheets, click 'add week to end' button."]
["6. Save the file, ensure you have the name of your organisation in the file name."]
[]
["B Entering audit data"]
["1. Collate paper audit form(s) for the ward(s). "]
["2. Select the ward sheet by clicking the appropriate tab."]
["3. Enter the name of the ward in the yellow highlighted field.  This will then be replicated in the dashboards and charts automatically."]
["4. Enter the data collated on the audit form into the appropriate week by either selecting from the drop down or typing directly into the box. Please note:\n"]
["a. The ethnicity abbreviations used are: M = Māori, P= Pacific, A = Asian, E= European,  O= Other, R = Residual Categories.  This is the prioritised ethnicity and should be found in the patient record.  \nNote that Residual Categories includes \"Don't know\", \"Refused to answer\", \"Response unidentifiable\" and \"Not stated\" as stated by the Ministry of Health ethnicity coding guidelines: https://www.health.govt.nz/nz-health-statistics/data-references/code-tables/common-code-tables/ethnicity-code-tables"]
["b. The audit questions use 'y' or 'n'"]
["c. An orange shaded field means that data is missing. Red font means that the data has been entered in error eg, if Q2=n then Q3¹y. You will need to fix these errors to ensure your dashboards and charts are correct."]
["5. To add a new week to the sheet, click 'add another week to end' button."]
["6. To move to the latest week on the sheet, click 'jump to latest week' button."]
["7. Repeat data entry for each ward."]
["8. Save the spreadsheet.  Remember to do this every time you enter data."]
["9. Be careful! If you delete a ward sheet, the data will be deleted and can not be recovered. Click 'repair DataSummary' button to ensure the dashboards and charts are not affected.  "]
[]
["C Entering outcomes data"]
["1. Collate the monthly data for outcomes from your sources. "]
["2.  Select the outcome sheet by clicking the 'outcomes' tab."]
["3. Enter the starting month and subsequent months for your outcome measures."]
["4. Enter the data collated by ethnicity for each month.  As the data is entered, the totals will calculate automatically."]
["5. The charts will automatically update once the data has been entered."]
[]
["D Over time dashboard"]
["1. Select the 'over time dashboard' tab to see the results of the audits over time.  Each of the questions has a chart that you can use to measure the improvement to your system over time. "]
["2. Before using the charts, update these by clicking the 'refresh' button."]
["3. If you have more than one ward, you can choose to see just the results from one or more of your wards. Use the box to the right of the charts. You can then copy the charts as pictures into other documents to share the results."]
[]
["E Snapshot dashboard"]
["1. Select the 'snapshot dashboard' tab to see results for particular week(s) or ward(s).  There are:"]
["a. Summary and completed core vital signs charts: these are radar diagrams.  These show the results at a glance and help you identify the areas that need focused improvement activity following the identified week(s) audit.  Ideally, you want the line(s) to be close to 100% (the outermost line).  "]
["b. Escalation and modifications charts: these are bar charts.  These expand on the results for escalation and modification."]
["2. Before using the charts, update these by clicking the 'refresh' button."]
["3.  If you have more than one ward, you can choose to see the results from one or more of your wards.  Use the box to the right of the charts."]
["4. You can see the results for one or more weeks by selecting the weeks in the box to the right of the charts. You can then copy the charts as pictures into other documents to share the results."]
[]
["F Charts"]
["1. Select the 'charts' tab if you want to do further analysis with the data."]
["2. Before using these pivot tables, update these by clicking the 'refesh' button."]
["3. You can analyse each audit question by ward, week and ethnicity. It will generate the percentages and populate a chart. \nPlease note that:"]
["a. if a pivot table has no data showing (is blank) then there is no data for that question. \nb. if a pivot table shows a 0% then zero percent of the responses were 'yes' for that question.  \nc. Q4a and Q4b  are a percentage of the number of modifications (Q4). Ideally, you want Q4a and Q4b to be close to 100%.\nd. Q5a-c are a percentage of the number of women who triggered an escalation (Q5). Ideally, you want Q5a-c to be close to 100%."]
["4. You can copy the charts as pictures into other documents to share the results. When reporting, consider the ward acuity and staffing levels to provide context to the results and suggesting improvements. "]
["5. Once you have a few months data, if you can not see the data in the pivot tables, select the chart and move it down. Be careful not to delete it accidentally."]
[]
["G DataSummary"]
["1. The 'datasummary' sheet has been locked.  Do not edit this sheet as it stores all of the data to enable the analysis."]
[]
["H Help"]
["1. Please contact info@hqsc.govt if you have questions on using this tool, would like to expand the number of wards, amend the outcome measures or need some help. "]

{"sheet":"ward one","index":1,"n_rows":28,"n_cols":73,"rows_kept":28,"cut":false,"hidden":false,"merged":[[3,63,3,72],[3,53,3,62],[3,33,3,42],[3,3,3,12],[3,13,3,22],[3,23,3,32],[3,43,3,52]]}
[null,"National maternity vital sign chart audit tool"]
[null,"Ward:"]
[]
[1,null,"Week starting",{"$f":"ControlPage!$B$5","v":"00:00:00"},null,null,null,null,null,null,null,null,null,{"$f":"D4+7","v":"1900-01-07"},null,null,null,null,null,null,null,null,null,{"$f":"N4+7","v":"1900-01-14"},null,null,null,null,null,null,null,null,null,{"$f":"X4+7","v":"1900-01-21"},null,null,null,null,null,null,null,null,null,{"$f":"AH4+7","v":"1900-01-28"},null,null,null,null,null,null,null,null,null,{"$f":"AR4+7","v":"1900-02-04"},null,null,null,null,null,null,null,null,null,{"$f":"BB4+7","v":"1900-02-11"}]
[2,null,"Week",{"$f":"D4","v":"00:00:00"},{"$f":"D5","v":"00:00:00"},{"$f":"E5","v":"00:00:00"},"00:00:00","00:00:00","00:00:00","00:00:00","00:00:00","00:00:00","00:00:00",{"$f":"N4","v":"1900-01-07"},{"$f":"N5","v":"1900-01-07"},{"$f":"O5","v":"1900-01-07"},"1900-01-07","1900-01-07","1900-01-07","1900-01-07","1900-01-07","1900-01-07","1900-01-07",{"$f":"X4","v":"1900-01-14"},{"$f":"X5","v":"1900-01-14"},{"$f":"Y5","v":"1900-01-14"},"1900-01-14","1900-01-14","1900-01-14","1900-01-14","1900-01-14","1900-01-14","1900-01-14",{"$f":"AH4","v":"1900-01-21"},{"$f":"AH5","v":"1900-01-21"},{"$f":"AI5","v":"1900-01-21"},"1900-01-21","1900-01-21","1900-01-21","1900-01-21","1900-01-21","1900-01-21","1900-01-21",{"$f":"AR4","v":"1900-01-28"},{"$f":"AR5","v":"1900-01-28"},{"$f":"AS5","v":"1900-01-28"},"1900-01-28","1900-01-28","1900-01-28","1900-01-28","1900-01-28","1900-01-28","1900-01-28",{"$f":"BB4","v":"1900-02-04"},{"$f":"BB5","v":"1900-02-04"},{"$f":"BC5","v":"1900-02-04"},"1900-02-04","1900-02-04","1900-02-04","1900-02-04","1900-02-04","1900-02-04","1900-02-04",{"$f":"BL4","v":"1900-02-11"},{"$f":"BL5","v":"1900-02-11"},{"$f":"BM5","v":"1900-02-11"},"1900-02-11","1900-02-11","1900-02-11","1900-02-11","1900-02-11","1900-02-11","1900-02-11"]
[3,null,"Ward",{"$f":"$C$2","v":0},{"$f":"$C$2","v":0},0,0,0,0,0,0,0,0,0,0,0,0,0,0,0,0,0,0,0,0,0,0,0,0,0,0,0,0,0,0,0,0,0,0,0,0,0,0,0,0,0,0,0,0,0,0,0,0,0,0,0,0,0,0,0,0,0,0,0,0,0,0,0,{"$f":"$C$2","v":0},0,0,0,0]
[4,null,"Case number",1,2,3,4,5,6,7,8,9,10,1,2,3,4,5,6,7,8,9,10,1,2,3,4,5,6,7,8,9,10,1,2,3,4,5,6,7,8,9,10,1,2,3,4,5,6,7,8,9,10,1,2,3,4,5,6,7,8,9,10,1,2,3,4,5,6,7,8,9,10]
[5,null,"Ethnicity"]
[6,null,"Recognition"]
[7,1,"Was the frequency of vital sign monitoring appropriate for the woman?"]
[8,2,"Was the core vital sign set completed for the most recent set of vital signs? \n(if no, complete questions 2a-2h to record which vital signs were present)"]
[null,"2a","Respiratory rate"]
[null,"2b","Oxygen"]
[null,"2c","Oxygen saturation"]
[null,"2d","Heart rate"]
[null,"2e","Systolic blood pressure"]
[null,"2f","Diastolic blood pressure"]
[null,"2g","Temperature"]
[null,"2h","Level of consciousness"]
[9,3,"Was the maternity early warning score (MEWS) calculated correctly for the most recent set of vital signs?"]
[10,4,"Were any modifications made to the MEWS triggers? (if yes, complete questions 4a and 4b)"]
[11,"4a","Was a rationale and duration for the modification documented? (clinical requirements)"]
[12,"4b","Did the person making the modification legibly date and sign it, and record contact details? (documentation requirements)"]
[13,null,"Escalation and response"]
[14,5,"Did the woman reach any of the defined triggers for escalation in, or up to, the 24-hour audit period?  (If no, audit is complete; if yes, complete questions 5a-c)"]
[15,"5a","Did escalation occur according to the pathway?"]
[16,"5b","Did the response occur according to the pathway?"]
[17,"5c","Did the responder complete documentation requirements (according to local policy)?"]

{"sheet":"Outcomes","index":2,"n_rows":18,"n_cols":22,"rows_kept":18,"cut":false,"hidden":false,"merged":[[2,1,8,1],[2,0,8,0],[10,0,16,0],[10,1,16,1]]}
["Outcomes measures (hospital-wide)"]
[null,null,"Month","Mar","Apr","May","Jun","Jul","Aug","Sep","Oct","Nov","Dec","Jan","Feb","Mar","Apr","May","Jun","Jul","Aug","Sep"]
["Number of escalations to the emergency team (or equivalent) ","Definition: Escalations triggered by an early warning score of 10+ or any vital sign in the blue zone. These escalations may (or may not) be accompanied by an escalation to the hospital’s rapid response team (or equivalent).\n\nThis information may be collected through a review of switchboard call records or directly collected by the emergency team (excluding intrapartum emergency calls).","Māori"]
[null,null,"Pacific"]
[null,null,"Asian"]
[null,null,"European"]
[null,null,"Other"]
[null,null,"Residual"]
[null,null,"Total",{"$f":"SUM(D3:D8)","v":0},{"$f":"SUM(E3:E8)","v":0},{"$f":"SUM(F3:F8)","v":0},0,{"$f":"SUM(H3:H8)","v":0},0,0,0,0,0,0,0,0,0,{"$f":"SUM(R3:R8)","v":0},{"$f":"SUM(S3:S8)","v":0},{"$f":"SUM(T3:T8)","v":0},{"$f":"SUM(U3:U8)","v":0},{"$f":"SUM(V3:V8)","v":0}]
[null,null,"Total",{"$f":"IF(D9=0,NA(),D9)","v":{"$error":"#N/A"}},{"$f":"IF(E9=0,NA(),E9)","v":{"$error":"#N/A"}},{"$error":"#N/A"},{"$error":"#N/A"},{"$error":"#N/A"},{"$error":"#N/A"},{"$error":"#N/A"},{"$error":"#N/A"},{"$error":"#N/A"},{"$error":"#N/A"},{"$error":"#N/A"},{"$error":"#N/A"},{"$error":"#N/A"},{"$error":"#N/A"},{"$error":"#N/A"},{"$error":"#N/A"},{"$error":"#N/A"},{"$error":"#N/A"},{"$error":"#N/A"}]
["Number of pregnant or recently pregnant women admitted to Intensive Care Unit/ High Dependency Unit ","Definition: Admissions to ICU or HDU with any diagnosis of O00-O99, Z34, Z35 (ICD-10). \n\nThis information is best collected through the PMS or DSU using the above criteria.   ","Māori"]
[null,null,"Pacific"]
[null,null,"Asian"]
[null,null,"European"]
[null,null,"Other"]
[null,null,"Residual"]
[null,null,"Total",{"$f":"SUM(D11:D16)","v":0},0,0,0,0,0,0,0,0,0,0,0,0,0,0,0,0,0,0]
[null,null,"Total",{"$f":"IF(D17=0,NA(),D17)","v":{"$error":"#N/A"}},{"$error":"#N/A"},{"$error":"#N/A"},{"$error":"#N/A"},{"$error":"#N/A"},{"$error":"#N/A"},{"$error":"#N/A"},{"$error":"#N/A"},{"$error":"#N/A"},{"$error":"#N/A"},{"$error":"#N/A"},{"$error":"#N/A"},{"$error":"#N/A"},{"$error":"#N/A"},{"$error":"#N/A"},{"$error":"#N/A"},{"$error":"#N/A"},{"$error":"#N/A"},{"$error":"#N/A"}]

{"sheet":"Over time dashboard","index":3,"n_rows":1,"n_cols":1,"rows_kept":1,"cut":false,"hidden":false,"merged":[]}
["MEWS Dashboard - Over Time"]

{"sheet":"Snapshot dashboard","index":4,"n_rows":24,"n_cols":16,"rows_kept":24,"cut":false,"hidden":false,"merged":[]}
["MEWS Dashboard - Snapshot",null,null,null,null,null,null,null,null,null,null,null,"Date Range","Date range"]
[null,null,null,null,null,null,null,null,null,null,null,null,null,"Values"]
[null,null,null,null,null,null,null,null,null,null,null,null,"Week starting","Min of Week starting","00:00:00","to"]
[null,null,null,null,null,null,null,null,null,null,null,null,"Week starting","Max of Week starting2","1900-02-11"]
[]
[]
[]
[]
[]
[]
[]
[]
[]
[]
[]
[]
[]
[]
[]
[]
[]
[]
[]
[null,null,null,null,null,{"$f":" \"n = \" & GETPIVOTDATA(\"Q5\",'Charts for dashboard'!$GG$30)","v":"n = 0"},null,null,null,null,null,null,{"$f":"\"n = \"&GETPIVOTDATA(\"Q4\",'Charts for dashboard'!$DM$31)","v":"n = 0"}]

{"sheet":"Charts","index":5,"n_rows":54,"n_cols":245,"rows_kept":54,"cut":false,"hidden":false,"merged":[]}
[null,null,null,null,null,null,null,null,null,"Important note: Before using this page, click 'refresh' button"]
[]
["Legend",null,null,null,null,null,null,null,"Summary diagram",null,null,null,null,null,null,null,null,null,null,null,null,null,null,null,null,null,"Q1: Appropriate frequency of monitoring",null,null,null,null,null,null,null,null,null,null,null,null,null,null,null,null,null,"Q2: Completed core vital sign set for the most recent set of vital signs",null,null,null,null,null,null,null,null,null,null,null,null,null,null,null,null,null,"Q2 & Q2a-h: % of completed core vital signs",null,null,null,null,null,null,null,null,null,null,null,null,null,null,null,null,null,"Q3: Most recent MEWS calculated correctly",null,null,null,null,null,null,null,null,null,null,null,null,null,null,null,null,null,"Q4: Modifications made to MEWS triggers",null,null,null,null,null,null,null,null,null,null,null,null,null,null,null,null,null,"Q4a-b: Modifications summary",null,null,null,null,null,null,null,null,null,null,null,null,null,null,null,null,null,"Q4a: Modifications with clinical requirements recorded",null,null,null,null,null,null,null,null,null,null,null,null,null,null,null,null,null,"Q4b: Modifications with documentation requirements recorded",null,null,null,null,null,null,null,null,null,null,null,null,null,null,null,null,null,"Q5: Triggers for escalation reached in, or up to, the 24-hour audit period",null,null,null,null,null,null,null,null,null,null,null,null,null,null,null,null,null,"Q5a-c: Escalation summary",null,null,null,null,null,null,null,null,null,null,null,null,null,null,null,null,null,"Q5a: Escalation as per pathway",null,null,null,null,null,null,null,null,null,null,null,null,null,null,null,null,null,"Q5b: Response as per pathway",null,null,null,null,null,null,null,null,null,null,null,null,null,null,null,null,null,"Q5c: Documentation as per local policy"]
[null,"Ward",null,null,null,null,null,null,"Week starting","(All)",null,null,null,null,null,null,null,null,null,null,null,null,null,null,null,null,null,null,null,null,null,null,null,null,null,null,null,null,null,null,null,null,null,null,null,null,null,null,null,null,null,null,null,null,null,null,null,null,null,null,null,null,"Ethnicity","(All)",null,null,null,null,null,null,null,null,null,null,null,null,null,null,null,null,null,null,null,null,null,null,null,null,null,null,null,null,null,null,null,null,null,null,"NOTE: There may not be any modifications made to the MEWS score triggers. Ideally, there should be few modifications made.",null,null,null,null,null,null,null,null,null,null,null,null,null,null,null,null,null,"NOTE: responses to Q4a and Q4b are subsets of responses to Q4",null,null,null,null,null,null,null,null,null,null,null,null,null,null,null,null,null,"NOTE: Percentages below are shown as a % of number of modifications",null,null,null,null,null,null,null,null,null,null,null,null,null,null,null,null,null,"NOTE: Percentages below are shown as a % of number of modifications",null,null,null,null,null,null,null,null,null,null,null,null,null,null,null,null,null,"NOTE: there may not be any women who trigger an escalation of MEWS 5 or above and single trigger parameter for pink and blue",null,null,null,null,null,null,null,null,null,null,null,null,null,null,null,null,null,"NOTE: Percentages below are shown as a % of number of women who triggered an escalation. ",null,null,null,null,null,null,null,null,null,null,null,null,null,null,null,null,null,"NOTE: Percentages below are shown as a % of number of women who triggered an escalation",null,null,null,null,null,null,null,null,null,null,null,null,null,null,null,null,null,"NOTE: Percentages below are shown as a % of number of women who triggered an escalation"]
[null,0,"Grand Total",null,null,null,null,null,"Ethnicity","(All)",null,null,null,null,null,null,null,null,null,null,null,null,null,null,null,null,"Ethnicity","(All)",null,null,null,null,null,null,null,null,null,null,null,null,null,null,null,null,"Ethnicity","(All)",null,null,null,null,null,null,null,null,null,null,null,null,null,null,null,null,"Week starting","(All)",null,null,null,null,null,null,null,null,null,null,null,null,null,null,null,null,"Ethnicity","(All)",null,null,null,null,null,null,null,null,null,null,null,null,null,null,null,null,"Ethnicity","(All)",null,null,null,null,null,null,null,null,null,null,null,null,null,null,null,null,"Ethnicity","(All)",null,null,null,null,null,null,null,null,null,null,null,null,null,null,null,null,"Ethnicity","(All)",null,null,null,null,null,null,null,null,null,null,null,null,null,null,null,null,"Ethnicity","(All)",null,null,null,null,null,null,null,null,null,null,null,null,null,null,null,null,"Ethnicity","(All)",null,null,null,null,null,null,null,null,null,null,null,null,null,null,null,null,"Ethnicity","(All)",null,null,null,null,null,null,null,null,null,null,null,null,null,null,null,null,"Ethnicity","(All)",null,null,null,null,null,null,null,null,null,null,null,null,null,null,null,null,"Ethnicity","(All)",null,null,null,null,null,null,null,null,null,null,null,null,null,null,null,null,"Ethnicity","(All)"]
["% Y on Q1",{"$error":"#N/A"},{"$error":"#N/A"},null,null,null,null,null,null,null,null,null,null,null,null,null,null,null,null,null,null,null,null,null,null,null,null,null,null,null,null,null,null,null,null,null,null,null,null,null,null,null,null,null,null,null,null,null,null,null,null,null,null,null,null,null,null,null,null,null,null,null,null,null,null,null,null,null,null,null,null,null,null,null,null,null,null,null,null,null,null,null,null,null,null,null,null,null,null,null,null,null,null,null,null,null,null,null,null,null,null,null,null,null,null,null,null,null,null,null,null,null,null,null,null,null,null,null,null,null,null,null,null,null,null,null,null,null,null,null,null,null,null,null,null,null,null,null,null,null,null,null,null,null,null,null,null,null,null,null,null,null,null,null,null,null,null,null,null,null,null,null,null,null,null,null,null,null,null,null,null,null,null,null,null,null,null,null,null,null,null,null,null,null,null,null,null,null,"Week starting","(All)"]
[null,null,null,null,null,null,null,null,null,"Ward",null,null,null,null,null,null,null,null,null,null,null,null,null,null,null,null,"% Y on Q1","Ward",null,null,null,null,null,null,null,null,null,null,null,null,null,null,null,null,"% Y on Q2","Ward",null,null,null,null,null,null,null,null,null,null,null,null,null,null,null,null,null,"Ward",null,null,null,null,null,null,null,null,null,null,null,null,null,null,null,null,"% Y on Q3","Ward",null,null,null,null,null,null,null,null,null,null,null,null,null,null,null,null,"% Y on Q4","Ward",null,null,null,null,null,null,null,null,null,null,null,null,null,null,null,null,null,"Ward",null,null,null,null,null,null,null,null,null,null,null,null,null,null,null,null,"Rationale & duration documented","Ward",null,null,null,null,null,null,null,null,null,null,null,null,null,null,null,null,"Dated, signed, contact details","Ward",null,null,null,null,null,null,null,null,null,null,null,null,null,null,null,null,"Sum of Q5 y as % of cases audited","Ward",null,null,null,null,null,null,null,null,null,null,null,null,null,null,null,null,null,null,null,null,null,null,null,null,null,null,null,null,null,null,null,null,null,null,"Sum of Q5aY%","Ward",null,null,null,null,null,null,null,null,null,null,null,null,null,null,null,null,"Sum of Q5bY%","Ward",null,null,null,null,null,null,null,null,null,null,null,null,null,null,null,null,"Sum of Q5cY%","Ward"]
[null,null,null,null,null,null,null,null,"Values",0,"Grand Total",null,null,null,null,null,null,null,null,null,null,null,null,null,null,null,"Week starting",0,"Grand Total",null,null,null,null,null,null,null,null,null,null,null,null,null,null,null,"Week starting",0,"Grand Total",null,null,null,null,null,null,null,null,null,null,null,null,null,null,null,"Values",0,"Grand Total",null,null,null,null,null,null,null,null,null,null,null,null,null,null,null,"Week starting",0,"Grand Total",null,null,null,null,null,null,null,null,null,null,null,null,null,null,null,"Week starting",0,"Grand Total",null,null,null,null,null,null,null,null,null,null,null,null,null,null,null,"Values",0,"Grand Total",null,null,null,null,null,null,null,null,null,null,null,null,null,null,null,"Week starting",0,"Grand Total",null,null,null,null,null,null,null,null,null,null,null,null,null,null,null,"Week starting",0,"Grand Total",null,null,null,null,null,null,null,null,null,null,null,null,null,null,null,"Week starting",0,"Grand Total",null,null,null,null,null,null,null,null,null,null,null,null,null,null,null,null,"Ward",null,null,null,null,null,null,null,null,null,null,null,null,null,null,null,null,"Week starting",0,"Grand Total",null,null,null,null,null,null,null,null,null,null,null,null,null,null,null,"Week starting",0,"Grand Total",null,null,null,null,null,null,null,null,null,null,null,null,null,null,null,"Week starting",0,"Grand Total"]
[null,null,null,null,null,null,null,null,"Appropriate frequency of monitoring",null,null,null,null,null,null,null,null,null,null,null,null,null,null,null,null,null,"00:00:00",null,null,null,null,null,null,null,null,null,null,null,null,null,null,null,null,null,"00:00:00",null,null,null,null,null,null,null,null,null,null,null,null,null,null,null,null,null,"Respiratory Rate",null,null,null,null,null,null,null,null,null,null,null,null,null,null,null,null,null,"00:00:00",null,null,null,null,null,null,null,null,null,null,null,null,null,null,null,null,null,"00:00:00",null,null,null,null,null,null,null,null,null,null,null,null,null,null,null,null,null,"Rationale & duration documented",null,null,null,null,null,null,null,null,null,null,null,null,null,null,null,null,null,"00:00:00",null,null,null,null,null,null,null,null,null,null,null,null,null,null,null,null,null,"00:00:00",null,null,null,null,null,null,null,null,null,null,null,null,null,null,null,null,null,"00:00:00",null,null,null,null,null,null,null,null,null,null,null,null,null,null,null,null,null,"Values",0,"Grand Total",null,null,null,null,null,null,null,null,null,null,null,null,null,null,null,"00:00:00",null,null,null,null,null,null,null,null,null,null,null,null,null,null,null,null,null,"00:00:00",null,null,null,null,null,null,null,null,null,null,null,null,null,null,null,null,null,"00:00:00"]
[null,null,null,null,null,null,null,null,"Completed core vital sign set",null,null,null,null,null,null,null,null,null,null,null,null,null,null,null,null,null,"1900-01-07",null,null,null,null,null,null,null,null,null,null,null,null,null,null,null,null,null,"1900-01-07",null,null,null,null,null,null,null,null,null,null,null,null,null,null,null,null,null,"Oxygen",null,null,null,null,null,null,null,null,null,null,null,null,null,null,null,null,null,"1900-01-07",null,null,null,null,null,null,null,null,null,null,null,null,null,null,null,null,null,"1900-01-07",null,null,null,null,null,null,null,null,null,null,null,null,null,null,null,null,null,"Dated, signed, contact details",null,null,null,null,null,null,null,null,null,null,null,null,null,null,null,null,null,"1900-01-07",null,null,null,null,null,null,null,null,null,null,null,null,null,null,null,null,null,"1900-01-07",null,null,null,null,null,null,null,null,null,null,null,null,null,null,null,null,null,"1900-01-07",null,null,null,null,null,null,null,null,null,null,null,null,null,null,null,null,null,"Escalation as per pathway",null,null,null,null,null,null,null,null,null,null,null,null,null,null,null,null,null,"1900-01-07",null,null,null,null,null,null,null,null,null,null,null,null,null,null,null,null,null,"1900-01-07",null,null,null,null,null,null,null,null,null,null,null,null,null,null,null,null,null,"1900-01-07"]
[null,null,null,null,null,null,null,null,"MEWS correctly calculated",null,null,null,null,null,null,null,null,null,null,null,null,null,null,null,null,null,"1900-01-14",null,null,null,null,null,null,null,null,null,null,null,null,null,null,null,null,null,"1900-01-14",null,null,null,null,null,null,null,null,null,null,null,null,null,null,null,null,null,"Oxygen saturation",null,null,null,null,null,null,null,null,null,null,null,null,null,null,null,null,null,"1900-01-14",null,null,null,null,null,null,null,null,null,null,null,null,null,null,null,null,null,"1900-01-14",null,null,null,null,null,null,null,null,null,null,null,null,null,null,null,null,null,null,null,null,null,null,null,null,null,null,null,null,null,null,null,null,null,null,null,"1900-01-14",null,null,null,null,null,null,null,null,null,null,null,null,null,null,null,null,null,"1900-01-14",null,null,null,null,null,null,null,null,null,null,null,null,null,null,null,null,null,"1900-01-14",null,null,null,null,null,null,null,null,null,null,null,null,null,null,null,null,null,"Response as per pathway",null,null,null,null,null,null,null,null,null,null,null,null,null,null,null,null,null,"1900-01-14",null,null,null,null,null,null,null,null,null,null,null,null,null,null,null,null,null,"1900-01-14",null,null,null,null,null,null,null,null,null,null,null,null,null,null,null,null,null,"1900-01-14"]
[null,null,null,null,null,null,null,null,null,null,null,null,null,null,null,null,null,null,null,null,null,null,null,null,null,null,"1900-01-21",null,null,null,null,null,null,null,null,null,null,null,null,null,null,null,null,null,"1900-01-21",null,null,null,null,null,null,null,null,null,null,null,null,null,null,null,null,null,"Heart Rate",null,null,null,null,null,null,null,null,null,null,null,null,null,null,null,null,null,"1900-01-21",null,null,null,null,null,null,null,null,null,null,null,null,null,null,null,null,null,"1900-01-21",null,null,null,null,null,null,null,null,null,null,null,null,null,null,null,null,null,null,null,null,null,null,null,null,null,null,null,null,null,null,null,null,null,null,null,"1900-01-21",null,null,null,null,null,null,null,null,null,null,null,null,null,null,null,null,null,"1900-01-21",null,null,null,null,null,null,null,null,null,null,null,null,null,null,null,null,null,"1900-01-21",null,null,null,null,null,null,null,null,null,null,null,null,null,null,null,null,null,"Documentation as per local policy",null,null,null,null,null,null,null,null,null,null,null,null,null,null,null,null,null,"1900-01-21",null,null,null,null,null,null,null,null,null,null,null,null,null,null,null,null,null,"1900-01-21",null,null,null,null,null,null,null,null,null,null,null,null,null,null,null,null,null,"1900-01-21"]
[null,null,null,null,null,null,null,null,null,null,null,null,null,null,null,null,null,null,null,null,null,null,null,null,null,null,"1900-01-28",null,null,null,null,null,null,null,null,null,null,null,null,null,null,null,null,null,"1900-01-28",null,null,null,null,null,null,null,null,null,null,null,null,null,null,null,null,null,"Systolic BP",null,null,null,null,null,null,null,null,null,null,null,null,null,null,null,null,null,"1900-01-28",null,null,null,null,null,null,null,null,null,null,null,null,null,null,null,null,null,"1900-01-28",null,null,null,null,null,null,null,null,null,null,null,null,null,null,null,null,null,null,null,null,null,null,null,null,null,null,null,null,null,null,null,null,null,null,null,"1900-01-28",null,null,null,null,null,null,null,null,null,null,null,null,null,null,null,null,null,"1900-01-28",null,null,null,null,null,null,null,null,null,null,null,null,null,null,null,null,null,"1900-01-28",null,null,null,null,null,null,null,null,null,null,null,null,null,null,null,null,null,null,null,null,null,null,null,null,null,null,null,null,null,null,null,null,null,null,null,"1900-01-28",null,null,null,null,null,null,null,null,null,null,null,null,null,null,null,null,null,"1900-01-28",null,null,null,null,null,null,null,null,null,null,null,null,null,null,null,null,null,"1900-01-28"]
[null,null,null,null,null,null,null,null,null,null,null,null,null,null,null,null,null,null,null,null,null,null,null,null,null,null,"1900-02-04",null,null,null,null,null,null,null,null,null,null,null,null,null,null,null,null,null,"1900-02-04",null,null,null,null,null,null,null,null,null,null,null,null,null,null,null,null,null,"Diastolic BP",null,null,null,null,null,null,null,null,null,null,null,null,null,null,null,null,null,"1900-02-04",null,null,null,null,null,null,null,null,null,null,null,null,null,null,null,null,null,"1900-02-04",null,null,null,null,null,null,null,null,null,null,null,null,null,null,null,null,null,null,null,null,null,null,null,null,null,null,null,null,null,null,null,null,null,null,null,"1900-02-04",null,null,null,null,null,null,null,null,null,null,null,null,null,null,null,null,null,"1900-02-04",null,null,null,null,null,null,null,null,null,null,null,null,null,null,null,null,null,"1900-02-04",null,null,null,null,null,null,null,null,null,null,null,null,null,null,null,null,null,null,null,null,null,null,null,null,null,null,null,null,null,null,null,null,null,null,null,"1900-02-04",null,null,null,null,null,null,null,null,null,null,null,null,null,null,null,null,null,"1900-02-04",null,null,null,null,null,null,null,null,null,null,null,null,null,null,null,null,null,"1900-02-04"]
[null,null,null,null,null,null,null,null,null,null,null,null,null,null,null,null,null,null,null,null,null,null,null,null,null,null,"1900-02-11",null,null,null,null,null,null,null,null,null,null,null,null,null,null,null,null,null,"1900-02-11",null,null,null,null,null,null,null,null,null,null,null,null,null,null,null,null,null,"Temperature",null,null,null,null,null,null,null,null,null,null,null,null,null,null,null,null,null,"1900-02-11",null,null,null,null,null,null,null,null,null,null,null,null,null,null,null,null,null,"1900-02-11",null,null,null,null,null,null,null,null,null,null,null,null,null,null,null,null,null,null,null,null,null,null,null,null,null,null,null,null,null,null,null,null,null,null,null,"1900-02-11",null,null,null,null,null,null,null,null,null,null,null,null,null,null,null,null,null,"1900-02-11",null,null,null,null,null,null,null,null,null,null,null,null,null,null,null,null,null,"1900-02-11",null,null,null,null,null,null,null,null,null,null,null,null,null,null,null,null,null,"NOTE: A blank data field means there were no 'yes' responses for the question and/or no women triggered as escalation.",null,null,null,null,null,null,null,null,null,null,null,null,null,null,null,null,null,"1900-02-11",null,null,null,null,null,null,null,null,null,null,null,null,null,null,null,null,null,"1900-02-11",null,null,null,null,null,null,null,null,null,null,null,null,null,null,null,null,null,"1900-02-11"]
[null,null,null,null,null,null,null,null,null,null,null,null,null,null,null,null,null,null,null,null,null,null,null,null,null,null,"Grand Total",null,null,null,null,null,null,null,null,null,null,null,null,null,null,null,null,null,"Grand Total",null,null,null,null,null,null,null,null,null,null,null,null,null,null,null,null,null,"Level of consciousness",null,null,null,null,null,null,null,null,null,null,null,null,null,null,null,null,null,"Grand Total",null,null,null,null,null,null,null,null,null,null,null,null,null,null,null,null,null,"Grand Total",null,null,null,null,null,null,null,null,null,null,null,null,null,null,null,null,null,null,null,null,null,null,null,null,null,null,null,null,null,null,null,null,null,null,null,"Grand Total",null,null,null,null,null,null,null,null,null,null,null,null,null,null,null,null,null,"Grand Total",null,null,null,null,null,null,null,null,null,null,null,null,null,null,null,null,null,"Grand Total",null,null,null,null,null,null,null,null,null,null,null,null,null,null,null,null,null,null,null,null,null,null,null,null,null,null,null,null,null,null,null,null,null,null,null,"Grand Total",null,null,null,null,null,null,null,null,null,null,null,null,null,null,null,null,null,"Grand Total",null,null,null,null,null,null,null,null,null,null,null,null,null,null,null,null,null,"Grand Total"]
[]
[]
[]
[]
[]
[]
[]
[]
[]
[]
[]
[]
[]
[]
[]
[]
[]
[]
[]
[]
[]
[]
[]
[]
[null,null,null,null,null,null,null,null,null,null,null,null,null,null,null,null,null,null,null,null,null,null,null,null,null,null,null,null,null,null,null,null,null,null,null,null,null,null,null,null,null,null,null,null,null,null,null,null,null,null,null,null,null,null,null,null,null,null,null,null,null,null,"These show the results at a glance and help you identify the areas that need focused improvement activity.   "]
[null,null,null,null,null,null,null,null,null,null,null,null,null,null,null,null,null,null,null,null,null,null,null,null,null,null,null,null,null,null,null,null,null,null,null,null,null,null,null,null,null,null,null,null,null,null,null,null,null,null,null,null,null,null,null,null,null,null,null,null,null,null,"Ideally, you want the line(s) to be close to 100% (the outermost line)."]
[]
[]
[]
[]
[]
[]
[]
[]
[]
[]
[null,null,null,null,null,null,null,null,"These show the results at a glance and help you identify the areas that need focused improvement activity.   "]
[null,null,null,null,null,null,null,null,"For the triangle graph, you want the line(s) to be close to 100% (the outermost line)."]

{"sheet":"Charts for dashboard","index":6,"n_rows":32,"n_cols":245,"rows_kept":32,"cut":false,"hidden":true,"merged":[]}
[null,null,null,null,null,null,null,null,null,"Important note: Before using this page, click 'refresh' button"]
[]
["Legend",null,null,null,null,null,null,null,"Summary diagram",null,null,null,null,null,null,null,null,null,null,null,null,null,null,null,null,null,"Q1: Appropriate frequency of monitoring",null,null,null,null,null,null,null,null,null,null,null,null,null,null,null,null,null,"Q2: Completed core vital sign set for the most recent set of vital signs",null,null,null,null,null,null,null,null,null,null,null,null,null,null,null,null,null,"Q2 & Q2a-h: % of completed core vital signs",null,null,null,null,null,null,null,null,null,null,null,null,null,null,null,null,null,"Q3: Most recent MEWS calculated correctly",null,null,null,null,null,null,null,null,null,null,null,null,null,null,null,null,null,"Q4: Modifications made to MEWS triggers",null,null,null,null,null,null,null,null,null,null,null,null,null,null,null,null,null,"Q4a-b: Modifications summary",null,null,null,null,null,null,null,null,null,null,null,null,null,null,null,null,null,"Q4a: Modifications with clinical requirements recorded",null,null,null,null,null,null,null,null,null,null,null,null,null,null,null,null,null,"Q4b: Modifications with documentation requirements recorded",null,null,null,null,null,null,null,null,null,null,null,null,null,null,null,null,null,"Q5: Triggers for escalation reached in, or up to, the 24-hour audit period",null,null,null,null,null,null,null,null,null,null,null,null,null,null,null,null,null,"Q5a-c: Escalation summary",null,null,null,null,null,null,null,null,null,null,null,null,null,null,null,null,null,"Q5a: Escalation as per pathway",null,null,null,null,null,null,null,null,null,null,null,null,null,null,null,null,null,"Q5b: Response as per pathway",null,null,null,null,null,null,null,null,null,null,null,null,null,null,null,null,null,"Q5c: Documentation as per local policy"]
[null,"Ward",null,null,null,null,null,null,"Week starting","(All)",null,null,null,null,null,null,null,null,null,null,null,null,null,null,null,null,null,null,null,null,null,null,null,null,null,null,null,null,null,null,null,null,null,null,null,null,null,null,null,null,null,null,null,null,null,null,null,null,null,null,null,null,"Ethnicity","(All)",null,null,null,null,null,null,null,null,null,null,null,null,null,null,null,null,null,null,null,null,null,null,null,null,null,null,null,null,null,null,null,null,null,null,null,null,null,null,null,null,null,null,null,null,null,null,null,null,null,null,null,null,null,null,null,null,null,null,null,null,null,null,null,null,null,null,null,null,null,null,"NOTE: Percentages below are shown as a % of number of modifications",null,null,null,null,null,null,null,null,null,null,null,null,null,null,null,null,null,"NOTE: Percentages below are shown as a % of number of modifications",null,null,null,null,null,null,null,null,null,null,null,null,null,null,null,null,null,null,null,null,null,null,null,null,null,null,null,null,null,null,null,null,null,null,null,"NOTE: Percentages below are shown as a % of number of women who triggered an escalation",null,null,null,null,null,null,null,null,null,null,null,null,null,null,null,null,null,"NOTE: Percentages below are shown as a % of number of women who triggered an escalation",null,null,null,null,null,null,null,null,null,null,null,null,null,null,null,null,null,"NOTE: Percentages below are shown as a % of number of women who triggered an escalation"]
[null,0,"Grand Total",null,null,null,null,null,"Ethnicity","(All)",null,null,null,null,null,null,null,null,null,null,null,null,null,null,null,null,"Ethnicity","(All)",null,null,null,null,null,null,null,null,null,null,null,null,null,null,null,null,"Ethnicity","(All)",null,null,null,null,null,null,null,null,null,null,null,null,null,null,null,null,"Week starting","(All)",null,null,null,null,null,null,null,null,null,null,null,null,null,null,null,null,"Ethnicity","(All)",null,null,null,null,null,null,null,null,null,null,null,null,null,null,null,null,"Ethnicity","(All)",null,null,null,null,null,null,null,null,null,null,null,null,null,null,null,null,"Ethnicity","(All)",null,null,null,null,null,null,null,null,null,null,null,null,null,null,null,null,"Ethnicity","(All)",null,null,null,null,null,null,null,null,null,null,null,null,null,null,null,null,"Ethnicity","(All)",null,null,null,null,null,null,null,null,null,null,null,null,null,null,null,null,"Ethnicity","(All)",null,null,null,null,null,null,null,null,null,null,null,null,null,null,null,null,"Ethnicity","(All)",null,null,null,null,null,null,null,null,null,null,null,null,null,null,null,null,"Ethnicity","(All)",null,null,null,null,null,null,null,null,null,null,null,null,null,null,null,null,"Ethnicity","(All)",null,null,null,null,null,null,null,null,null,null,null,null,null,null,null,null,"Ethnicity","(All)"]
["% Y on Q1",{"$error":"#N/A"},{"$error":"#N/A"},null,null,null,null,null,null,null,null,null,null,null,null,null,null,null,null,null,null,null,null,null,null,null,null,null,null,null,null,null,null,null,null,null,null,null,null,null,null,null,null,null,null,null,null,null,null,null,null,null,null,null,null,null,null,null,null,null,null,null,null,null,null,null,null,null,null,null,null,null,null,null,null,null,null,null,null,null,null,null,null,null,null,null,null,null,null,null,null,null,null,null,null,null,null,null,null,null,null,null,null,null,null,null,null,null,null,null,null,null,null,null,null,null,null,null,null,null,null,null,null,null,null,null,null,null,null,null,null,null,null,null,null,null,null,null,null,null,null,null,null,null,null,null,null,null,null,null,null,null,null,null,null,null,null,null,null,null,null,null,null,null,null,null,null,null,null,null,null,null,null,null,null,null,null,null,null,null,null,null,null,null,null,null,null,null,"Week starting","(All)"]
[null,null,null,null,null,null,null,null,null,"Ward",null,null,null,null,null,null,null,null,null,null,null,null,null,null,null,null,"% Y on Q1","Ward",null,null,null,null,null,null,null,null,null,null,null,null,null,null,null,null,"% Y on Q2","Ward",null,null,null,null,null,null,null,null,null,null,null,null,null,null,null,null,null,"Ward",null,null,null,null,null,null,null,null,null,null,null,null,null,null,null,null,"% Y on Q3","Ward",null,null,null,null,null,null,null,null,null,null,null,null,null,null,null,null,"% Y on Q4","Ward",null,null,null,null,null,null,null,null,null,null,null,null,null,null,null,null,null,"Ward",null,null,null,null,null,null,null,null,null,null,null,null,null,null,null,null,"Rationale & duration documented","Ward",null,null,null,null,null,null,null,null,null,null,null,null,null,null,null,null,"Dated, signed, contact details","Ward",null,null,null,null,null,null,null,null,null,null,null,null,null,null,null,null,"Sum of Q5 y as % of cases audited","Ward",null,null,null,null,null,null,null,null,null,null,null,null,null,null,null,null,null,null,null,null,null,null,null,null,null,null,null,null,null,null,null,null,null,null,"Sum of Q5aY%","Ward",null,null,null,null,null,null,null,null,null,null,null,null,null,null,null,null,"Sum of Q5bY%","Ward",null,null,null,null,null,null,null,null,null,null,null,null,null,null,null,null,"Sum of Q5cY%","Ward"]
[null,null,null,null,null,null,null,null,"Values",0,"Grand Total",null,null,null,null,null,null,null,null,null,null,null,null,null,null,null,"Week starting",0,"Grand Total",null,null,null,null,null,null,null,null,null,null,null,null,null,null,null,"Week starting",0,"Grand Total",null,null,null,null,null,null,null,null,null,null,null,null,null,null,null,"Values",0,"Grand Total",null,null,null,null,null,null,null,null,null,null,null,null,null,null,null,"Week starting",0,"Grand Total",null,null,null,null,null,null,null,null,null,null,null,null,null,null,null,"Week starting",0,"Grand Total",null,null,null,null,null,null,null,null,null,null,null,null,null,null,null,"Values",0,"Grand Total",null,null,null,null,null,null,null,null,null,null,null,null,null,null,null,"Week starting",0,"Grand Total",null,null,null,null,null,null,null,null,null,null,null,null,null,null,null,"Week starting",0,"Grand Total",null,null,null,null,null,null,null,null,null,null,null,null,null,null,null,"Week starting",0,"Grand Total",null,null,null,null,null,null,null,null,null,null,null,null,null,null,null,null,"Ward",null,null,null,null,null,null,null,null,null,null,null,null,null,null,null,null,"Week starting",0,"Grand Total",null,null,null,null,null,null,null,null,null,null,null,null,null,null,null,"Week starting",0,"Grand Total",null,null,null,null,null,null,null,null,null,null,null,null,null,null,null,"Week starting",0,"Grand Total"]
[null,null,null,null,null,null,null,null,"Appropriate frequency of monitoring",{"$error":"#N/A"},{"$error":"#N/A"},null,null,null,null,null,null,null,null,null,null,null,null,null,null,null,"00:00:00",{"$error":"#N/A"},{"$error":"#N/A"},null,null,null,null,null,null,null,null,null,null,null,null,null,null,null,"00:00:00",{"$error":"#N/A"},{"$error":"#N/A"},null,null,null,null,null,null,null,null,null,null,null,null,null,null,null,"Respiratory Rate",{"$error":"#N/A"},{"$error":"#N/A"},null,null,null,null,null,null,null,null,null,null,null,null,null,null,null,"00:00:00",{"$error":"#N/A"},{"$error":"#N/A"},null,null,null,null,null,null,null,null,null,null,null,null,null,null,null,"00:00:00",{"$error":"#N/A"},{"$error":"#N/A"},null,null,null,null,null,null,null,null,null,null,null,null,null,null,null,"Rationale & duration documented",{"$error":"#N/A"},{"$error":"#N/A"},null,null,null,null,null,null,null,null,null,null,null,null,null,null,null,"00:00:00",{"$error":"#N/A"},{"$error":"#N/A"},null,null,null,null,null,null,null,null,null,null,null,null,null,null,null,"00:00:00",{"$error":"#N/A"},{"$error":"#N/A"},null,null,null,null,null,null,null,null,null,null,null,null,null,null,null,"00:00:00",{"$error":"#N/A"},{"$error":"#N/A"},null,null,null,null,null,null,null,null,null,null,null,null,null,null,null,"Values",0,"Grand Total",null,null,null,null,null,null,null,null,null,null,null,null,null,null,null,"00:00:00",{"$error":"#N/A"},{"$error":"#N/A"},null,null,null,null,null,null,null,null,null,null,null,null,null,null,null,"00:00:00",{"$error":"#N/A"},{"$error":"#N/A"},null,null,null,null,null,null,null,null,null,null,null,null,null,null,null,"00:00:00",{"$error":"#N/A"},{"$error":"#N/A"}]
[null,null,null,null,null,null,null,null,"Completed core vital sign set",{"$error":"#N/A"},{"$error":"#N/A"},null,null,null,null,null,null,null,null,null,null,null,null,null,null,null,"1900-01-07",{"$error":"#N/A"},{"$error":"#N/A"},null,null,null,null,null,null,null,null,null,null,null,null,null,null,null,"1900-01-07",{"$error":"#N/A"},{"$error":"#N/A"},null,null,null,null,null,null,null,null,null,null,null,null,null,null,null,"Oxygen",{"$error":"#N/A"},{"$error":"#N/A"},null,null,null,null,null,null,null,null,null,null,null,null,null,null,null,"1900-01-07",{"$error":"#N/A"},{"$error":"#N/A"},null,null,null,null,null,null,null,null,null,null,null,null,null,null,null,"1900-01-07",{"$error":"#N/A"},{"$error":"#N/A"},null,null,null,null,null,null,null,null,null,null,null,null,null,null,null,"Dated, signed, contact details",{"$error":"#N/A"},{"$error":"#N/A"},null,null,null,null,null,null,null,null,null,null,null,null,null,null,null,"1900-01-07",{"$error":"#N/A"},{"$error":"#N/A"},null,null,null,null,null,null,null,null,null,null,null,null,null,null,null,"1900-01-07",{"$error":"#N/A"},{"$error":"#N/A"},null,null,null,null,null,null,null,null,null,null,null,null,null,null,null,"1900-01-07",{"$error":"#N/A"},{"$error":"#N/A"},null,null,null,null,null,null,null,null,null,null,null,null,null,null,null,"Escalation as per pathway",{"$error":"#N/A"},{"$error":"#N/A"},null,null,null,null,null,null,null,null,null,null,null,null,null,null,null,"1900-01-07",{"$error":"#N/A"},{"$error":"#N/A"},null,null,null,null,null,null,null,null,null,null,null,null,null,null,null,"1900-01-07",{"$error":"#N/A"},{"$error":"#N/A"},null,null,null,null,null,null,null,null,null,null,null,null,null,null,null,"1900-01-07",{"$error":"#N/A"},{"$error":"#N/A"}]
[null,null,null,null,null,null,null,null,"MEWS correctly calculated",{"$error":"#N/A"},{"$error":"#N/A"},null,null,null,null,null,null,null,null,null,null,null,null,null,null,null,"1900-01-14",{"$error":"#N/A"},{"$error":"#N/A"},null,null,null,null,null,null,null,null,null,null,null,null,null,null,null,"1900-01-14",{"$error":"#N/A"},{"$error":"#N/A"},null,null,null,null,null,null,null,null,null,null,null,null,null,null,null,"Oxygen saturation",{"$error":"#N/A"},{"$error":"#N/A"},null,null,null,null,null,null,null,null,null,null,null,null,null,null,null,"1900-01-14",{"$error":"#N/A"},{"$error":"#N/A"},null,null,null,null,null,null,null,null,null,null,null,null,null,null,null,"1900-01-14",{"$error":"#N/A"},{"$error":"#N/A"},null,null,null,null,null,null,null,null,null,null,null,null,null,null,null,null,null,null,null,null,null,null,null,null,null,null,null,null,null,null,null,null,null,"1900-01-14",{"$error":"#N/A"},{"$error":"#N/A"},null,null,null,null,null,null,null,null,null,null,null,null,null,null,null,"1900-01-14",{"$error":"#N/A"},{"$error":"#N/A"},null,null,null,null,null,null,null,null,null,null,null,null,null,null,null,"1900-01-14",{"$error":"#N/A"},{"$error":"#N/A"},null,null,null,null,null,null,null,null,null,null,null,null,null,null,null,"Response as per pathway",{"$error":"#N/A"},{"$error":"#N/A"},null,null,null,null,null,null,null,null,null,null,null,null,null,null,null,"1900-01-14",{"$error":"#N/A"},{"$error":"#N/A"},null,null,null,null,null,null,null,null,null,null,null,null,null,null,null,"1900-01-14",{"$error":"#N/A"},{"$error":"#N/A"},null,null,null,null,null,null,null,null,null,null,null,null,null,null,null,"1900-01-14",{"$error":"#N/A"},{"$error":"#N/A"}]
[null,null,null,null,null,null,null,null,null,null,null,null,null,null,null,null,null,null,null,null,null,null,null,null,null,null,"1900-01-21",{"$error":"#N/A"},{"$error":"#N/A"},null,null,null,null,null,null,null,null,null,null,null,null,null,null,null,"1900-01-21",{"$error":"#N/A"},{"$error":"#N/A"},null,null,null,null,null,null,null,null,null,null,null,null,null,null,null,"Heart Rate",{"$error":"#N/A"},{"$error":"#N/A"},null,null,null,null,null,null,null,null,null,null,null,null,null,null,null,"1900-01-21",{"$error":"#N/A"},{"$error":"#N/A"},null,null,null,null,null,null,null,null,null,null,null,null,null,null,null,"1900-01-21",{"$error":"#N/A"},{"$error":"#N/A"},null,null,null,null,null,null,null,null,null,null,null,null,null,null,null,null,null,null,null,null,null,null,null,null,null,null,null,null,null,null,null,null,null,"1900-01-21",{"$error":"#N/A"},{"$error":"#N/A"},null,null,null,null,null,null,null,null,null,null,null,null,null,null,null,"1900-01-21",{"$error":"#N/A"},{"$error":"#N/A"},null,null,null,null,null,null,null,null,null,null,null,null,null,null,null,"1900-01-21",{"$error":"#N/A"},{"$error":"#N/A"},null,null,null,null,null,null,null,null,null,null,null,null,null,null,null,"Documentation as per local policy",{"$error":"#N/A"},{"$error":"#N/A"},null,null,null,null,null,null,null,null,null,null,null,null,null,null,null,"1900-01-21",{"$error":"#N/A"},{"$error":"#N/A"},null,null,null,null,null,null,null,null,null,null,null,null,null,null,null,"1900-01-21",{"$error":"#N/A"},{"$error":"#N/A"},null,null,null,null,null,null,null,null,null,null,null,null,null,null,null,"1900-01-21",{"$error":"#N/A"},{"$error":"#N/A"}]
[null,null,null,null,null,null,null,null,null,null,null,null,null,null,null,null,null,null,null,null,null,null,null,null,null,null,"1900-01-28",{"$error":"#N/A"},{"$error":"#N/A"},null,null,null,null,null,null,null,null,null,null,null,null,null,null,null,"1900-01-28",{"$error":"#N/A"},{"$error":"#N/A"},null,null,null,null,null,null,null,null,null,null,null,null,null,null,null,"Systolic BP",{"$error":"#N/A"},{"$error":"#N/A"},null,null,null,null,null,null,null,null,null,null,null,null,null,null,null,"1900-01-28",{"$error":"#N/A"},{"$error":"#N/A"},null,null,null,null,null,null,null,null,null,null,null,null,null,null,null,"1900-01-28",{"$error":"#N/A"},{"$error":"#N/A"},null,null,null,null,null,null,null,null,null,null,null,null,null,null,null,null,null,null,null,null,null,null,null,null,null,null,null,null,null,null,null,null,null,"1900-01-28",{"$error":"#N/A"},{"$error":"#N/A"},null,null,null,null,null,null,null,null,null,null,null,null,null,null,null,"1900-01-28",{"$error":"#N/A"},{"$error":"#N/A"},null,null,null,null,null,null,null,null,null,null,null,null,null,null,null,"1900-01-28",{"$error":"#N/A"},{"$error":"#N/A"},null,null,null,null,null,null,null,null,null,null,null,null,null,null,null,null,null,null,null,null,null,null,null,null,null,null,null,null,null,null,null,null,null,"1900-01-28",{"$error":"#N/A"},{"$error":"#N/A"},null,null,null,null,null,null,null,null,null,null,null,null,null,null,null,"1900-01-28",{"$error":"#N/A"},{"$error":"#N/A"},null,null,null,null,null,null,null,null,null,null,null,null,null,null,null,"1900-01-28",{"$error":"#N/A"},{"$error":"#N/A"}]
[null,null,null,null,null,null,null,null,null,null,null,null,null,null,null,null,null,null,null,null,null,null,null,null,null,null,"1900-02-04",{"$error":"#N/A"},{"$error":"#N/A"},null,null,null,null,null,null,null,null,null,null,null,null,null,null,null,"1900-02-04",{"$error":"#N/A"},{"$error":"#N/A"},null,null,null,null,null,null,null,null,null,null,null,null,null,null,null,"Diastolic BP",{"$error":"#N/A"},{"$error":"#N/A"},null,null,null,null,null,null,null,null,null,null,null,null,null,null,null,"1900-02-04",{"$error":"#N/A"},{"$error":"#N/A"},null,null,null,null,null,null,null,null,null,null,null,null,null,null,null,"1900-02-04",{"$error":"#N/A"},{"$error":"#N/A"},null,null,null,null,null,null,null,null,null,null,null,null,null,null,null,null,null,null,null,null,null,null,null,null,null,null,null,null,null,null,null,null,null,"1900-02-04",{"$error":"#N/A"},{"$error":"#N/A"},null,null,null,null,null,null,null,null,null,null,null,null,null,null,null,"1900-02-04",{"$error":"#N/A"},{"$error":"#N/A"},null,null,null,null,null,null,null,null,null,null,null,null,null,null,null,"1900-02-04",{"$error":"#N/A"},{"$error":"#N/A"},null,null,null,null,null,null,null,null,null,null,null,null,null,null,null,null,null,null,null,null,null,null,null,null,null,null,null,null,null,null,null,null,null,"1900-02-04",{"$error":"#N/A"},{"$error":"#N/A"},null,null,null,null,null,null,null,null,null,null,null,null,null,null,null,"1900-02-04",{"$error":"#N/A"},{"$error":"#N/A"},null,null,null,null,null,null,null,null,null,null,null,null,null,null,null,"1900-02-04",{"$error":"#N/A"},{"$error":"#N/A"}]
[null,null,null,null,null,null,null,null,null,null,null,null,null,null,null,null,null,null,null,null,null,null,null,null,null,null,"1900-02-11",{"$error":"#N/A"},{"$error":"#N/A"},null,null,null,null,null,null,null,null,null,null,null,null,null,null,null,"1900-02-11",{"$error":"#N/A"},{"$error":"#N/A"},null,null,null,null,null,null,null,null,null,null,null,null,null,null,null,"Temperature",{"$error":"#N/A"},{"$error":"#N/A"},null,null,null,null,null,null,null,null,null,null,null,null,null,null,null,"1900-02-11",{"$error":"#N/A"},{"$error":"#N/A"},null,null,null,null,null,null,null,null,null,null,null,null,null,null,null,"1900-02-11",{"$error":"#N/A"},{"$error":"#N/A"},null,null,null,null,null,null,null,null,null,null,null,null,null,null,null,null,null,null,null,null,null,null,null,null,null,null,null,null,null,null,null,null,null,"1900-02-11",{"$error":"#N/A"},{"$error":"#N/A"},null,null,null,null,null,null,null,null,null,null,null,null,null,null,null,"1900-02-11",{"$error":"#N/A"},{"$error":"#N/A"},null,null,null,null,null,null,null,null,null,null,null,null,null,null,null,"1900-02-11",{"$error":"#N/A"},{"$error":"#N/A"},null,null,null,null,null,null,null,null,null,null,null,null,null,null,null,null,null,null,null,null,null,null,null,null,null,null,null,null,null,null,null,null,null,"1900-02-11",{"$error":"#N/A"},{"$error":"#N/A"},null,null,null,null,null,null,null,null,null,null,null,null,null,null,null,"1900-02-11",{"$error":"#N/A"},{"$error":"#N/A"},null,null,null,null,null,null,null,null,null,null,null,null,null,null,null,"1900-02-11",{"$error":"#N/A"},{"$error":"#N/A"}]
[null,null,null,null,null,null,null,null,null,null,null,null,null,null,null,null,null,null,null,null,null,null,null,null,null,null,"Grand Total",{"$error":"#N/A"},{"$error":"#N/A"},null,null,null,null,null,null,null,null,null,null,null,null,null,null,null,"Grand Total",{"$error":"#N/A"},{"$error":"#N/A"},null,null,null,null,null,null,null,null,null,null,null,null,null,null,null,"Level of consciousness",{"$error":"#N/A"},{"$error":"#N/A"},null,null,null,null,null,null,null,null,null,null,null,null,null,null,null,"Grand Total",{"$error":"#N/A"},{"$error":"#N/A"},null,null,null,null,null,null,null,null,null,null,null,null,null,null,null,"Grand Total",{"$error":"#N/A"},{"$error":"#N/A"},null,null,null,null,null,null,null,null,null,null,null,null,null,null,null,null,null,null,null,null,null,null,null,null,null,null,null,null,null,null,null,null,null,"Grand Total",{"$error":"#N/A"},{"$error":"#N/A"},null,null,null,null,null,null,null,null,null,null,null,null,null,null,null,"Grand Total",{"$error":"#N/A"},{"$error":"#N/A"},null,null,null,null,null,null,null,null,null,null,null,null,null,null,null,"Grand Total",{"$error":"#N/A"},{"$error":"#N/A"},null,null,null,null,null,null,null,null,null,null,null,null,null,null,null,null,null,null,null,null,null,null,null,null,null,null,null,null,null,null,null,null,null,"Grand Total",{"$error":"#N/A"},{"$error":"#N/A"},null,null,null,null,null,null,null,null,null,null,null,null,null,null,null,"Grand Total",{"$error":"#N/A"},{"$error":"#N/A"},null,null,null,null,null,null,null,null,null,null,null,null,null,null,null,"Grand Total",{"$error":"#N/A"},{"$error":"#N/A"}]
[]
[]
[]
[]
[]
[]
[]
[]
[]
[]
[null,null,null,null,null,null,null,null,null,null,null,null,null,null,null,null,null,null,null,null,null,null,null,null,null,null,null,null,null,null,null,null,null,null,null,null,null,null,null,null,null,null,null,null,null,null,null,null,null,null,null,null,null,null,null,null,null,null,null,null,null,null,null,null,null,null,null,null,null,null,null,null,null,null,null,null,null,null,null,null,null,null,null,null,null,null,null,null,null,null,null,null,null,null,null,null,null,null,null,null,null,null,null,null,null,null,null,null,null,null,null,null,null,null,null,null,null,null,null,null,null,null,null,null,null,null,null,null,null,null,null,null,null,null,null,null,null,null,null,null,null,null,null,null,null,null,null,null,null,null,null,null,null,null,null,null,null,null,null,null,null,null,null,null,null,null,null,null,null,null,null,null,null,null,null,null,null,null,null,null,null,null,null,null,null,null,null,null,"Ethnicity","(All)"]
[null,null,null,null,null,null,null,null,null,null,null,null,null,null,null,null,null,null,null,null,null,null,null,null,null,null,null,null,null,null,null,null,null,null,null,null,null,null,null,null,null,null,null,null,null,null,null,null,null,null,null,null,null,null,null,null,null,null,null,null,null,null,null,null,null,null,null,null,null,null,null,null,null,null,null,null,null,null,null,null,null,null,null,null,null,null,null,null,null,null,null,null,null,null,null,null,null,null,null,null,null,null,null,null,null,null,null,null,null,null,null,null,null,null,null,null,null,null,null,null,null,null,null,null,null,null,null,null,null,null,null,null,null,null,null,null,null,null,null,null,null,null,null,null,null,null,null,null,null,null,null,null,null,null,null,null,null,null,null,null,null,null,null,null,null,null,null,null,null,null,null,null,null,null,null,null,null,null,null,null,null,null,null,null,null,null,null,null,"Week starting","(All)"]
[null,null,null,null,null,null,null,null,null,null,null,null,null,null,null,null,null,null,null,null,null,null,null,null,null,null,null,null,null,null,null,null,null,null,null,null,null,null,null,null,null,null,null,null,null,null,null,null,null,null,null,null,null,null,null,null,null,null,null,null,null,null,null,null,null,null,null,null,null,null,null,null,null,null,null,null,null,null,null,null,null,null,null,null,null,null,null,null,null,null,null,null,null,null,null,null,null,null,null,null,null,null,null,null,null,null,null,null,null,null,null,null,null,null,null,null,"Ethnicity","(All)"]
[null,null,null,null,null,null,null,null,null,null,null,null,null,null,null,null,null,null,null,null,null,null,null,null,null,null,null,null,null,null,null,null,null,null,null,null,null,null,null,null,null,null,null,null,null,null,null,null,null,null,null,null,null,null,null,null,null,null,null,null,null,null,null,null,null,null,null,null,null,null,null,null,null,null,null,null,null,null,null,null,null,null,null,null,null,null,null,null,null,null,null,null,null,null,null,null,null,null,null,null,null,null,null,null,null,null,null,null,null,null,null,null,null,null,null,null,null,null,null,null,null,null,null,null,null,null,null,null,null,null,null,null,null,null,null,null,null,null,null,null,null,null,null,null,null,null,null,null,null,null,null,null,null,null,null,null,null,null,null,null,null,null,null,null,null,null,null,null,null,null,null,null,null,null,null,null,null,null,null,null,null,null,null,null,null,null,null,null,"Sum of Q5"]
[null,null,null,null,null,null,null,null,null,null,null,null,null,null,null,null,null,null,null,null,null,null,null,null,null,null,null,null,null,null,null,null,null,null,null,null,null,null,null,null,null,null,null,null,null,null,null,null,null,null,null,null,null,null,null,null,null,null,null,null,null,null,null,null,null,null,null,null,null,null,null,null,null,null,null,null,null,null,null,null,null,null,null,null,null,null,null,null,null,null,null,null,null,null,null,null,null,null,null,null,null,null,null,null,null,null,null,null,null,null,null,null,null,null,null,null,"Number of audits",null,null,null,null,null,null,null,null,null,null,null,null,null,null,null,null,null,null,null,null,null,null,null,null,null,null,null,null,null,null,null,null,null,null,null,null,null,null,null,null,null,null,null,null,null,null,null,null,null,null,null,null,null,null,null,null,null,null,null,null,null,null,null,null,null,null,null,null,null,null,null,0]
[null,null,null,null,null,null,null,null,null,null,null,null,null,null,null,null,null,null,null,null,null,null,null,null,null,null,null,null,null,null,null,null,null,null,null,null,null,null,null,null,null,null,null,null,null,null,null,null,null,null,null,null,null,null,null,null,null,null,null,null,null,null,null,null,null,null,null,null,null,null,null,null,null,null,null,null,null,null,null,null,null,null,null,null,null,null,null,null,null,null,null,null,null,null,null,null,null,null,null,null,null,null,null,null,null,null,null,null,null,null,null,null,null,null,null,null,0]

{"sheet":"DataSummary","index":7,"n_rows":71,"n_cols":48,"rows_kept":71,"cut":false,"hidden":false,"merged":[]}
["Week starting","Ward","Case number","Ethnicity","Recognition",1,2,"2a","2b","2c","2d","2e","2f","2g","2h",3,4,"4a","4b","Escalation&Response",5,"5a","5b","5c","Week starting","Ward","Case number","Ethnicity",{"$f":"\"Q\"&F1","v":"Q1"},{"$f":"\"Q\"&G1","v":"Q2"},"Q2a","Q2b","Q2c","Q2d","Q2e","Q2f","Q2g","Q2h","Q3","Q4","Q4a","Q4b",{"$f":"\"Q\"&T1","v":"QEscalation&Response"},{"$f":"\"Q\"&U1","v":"Q5"},{"$f":"\"Q\"&V1","v":"Q5a"},{"$f":"\"Q\"&W1","v":"Q5b"},{"$f":"\"Q\"&X1","v":"Q5c"},"CasesAudited"]
[{"$f":"TRANSPOSE('ward one'!$D$5:$BU$28)","v":"00:00:00"},0,1,0,0,0,0,0,0,0,0,0,0,0,0,0,0,0,0,0,0,0,0,0,{"$f":"A2","v":"00:00:00"},{"$f":"B2","v":0},{"$f":"C2","v":1},{"$f":"D2","v":0},{"$f":"IF(F2=\"y\",1,0)","v":0},{"$f":"IF(G2=\"y\",1,0)","v":0},0,0,0,0,0,0,0,0,0,0,0,0,0,0,0,0,0,{"$f":"IF(COUNTIF(D2:S2,\"*\")>0,1,0)","v":0}]
["00:00:00",0,2,0,0,0,0,0,0,0,0,0,0,0,0,0,0,0,0,0,0,0,0,0,{"$f":"A3","v":"00:00:00"},{"$f":"B3","v":0},{"$f":"C3","v":2},{"$f":"D3","v":0},{"$f":"IF(F3=\"y\",1,0)","v":0},{"$f":"IF(G3=\"y\",1,0)","v":0},{"$f":"IF(H3=\"y\",1,0)","v":0},{"$f":"IF(I3=\"y\",1,0)","v":0},{"$f":"IF(J3=\"y\",1,0)","v":0},{"$f":"IF(K3=\"y\",1,0)","v":0},{"$f":"IF(L3=\"y\",1,0)","v":0},{"$f":"IF(M3=\"y\",1,0)","v":0},{"$f":"IF(N3=\"y\",1,0)","v":0},{"$f":"IF(O3=\"y\",1,0)","v":0},{"$f":"IF(P3=\"y\",1,0)","v":0},{"$f":"IF(Q3=\"y\",1,0)","v":0},{"$f":"IF(R3=\"y\",1,0)","v":0},{"$f":"IF(S3=\"y\",1,0)","v":0},{"$f":"IF(T3=\"y\",1,0)","v":0},{"$f":"IF(U3=\"y\",1,0)","v":0},{"$f":"IF(V3=\"y\",1,0)","v":0},{"$f":"IF(W3=\"y\",1,0)","v":0},{"$f":"IF(X3=\"y\",1,0)","v":0},{"$f":"IF(COUNTIF(D3:S3,\"*\")>0,1,0)","v":0}]
["00:00:00",0,3,0,0,0,0,0,0,0,0,0,0,0,0,0,0,0,0,0,0,0,0,0,"00:00:00",0,3,0,0,0,0,0,0,0,0,0,0,0,0,0,0,0,0,0,0,0,0,0]
["00:00:00",0,4,0,0,0,0,0,0,0,0,0,0,0,0,0,0,0,0,0,0,0,0,0,"00:00:00",0,4,0,0,0,0,0,0,0,0,0,0,0,0,0,0,0,0,0,0,0,0,0]
["00:00:00",0,5,0,0,0,0,0,0,0,0,0,0,0,0,0,0,0,0,0,0,0,0,0,"00:00:00",0,5,0,0,0,0,0,0,0,0,0,0,0,0,0,0,0,0,0,0,0,0,0]
["00:00:00",0,6,0,0,0,0,0,0,0,0,0,0,0,0,0,0,0,0,0,0,0,0,0,"00:00:00",0,6,0,0,0,0,0,0,0,0,0,0,0,0,0,0,0,0,0,0,0,0,0]
["00:00:00",0,7,0,0,0,0,0,0,0,0,0,0,0,0,0,0,0,0,0,0,0,0,0,"00:00:00",0,7,0,0,0,0,0,0,0,0,0,0,0,0,0,0,0,0,0,0,0,0,0]
["00:00:00",0,8,0,0,0,0,0,0,0,0,0,0,0,0,0,0,0,0,0,0,0,0,0,"00:00:00",0,8,0,0,0,0,0,0,0,0,0,0,0,0,0,0,0,0,0,0,0,0,0]
["00:00:00",0,9,0,0,0,0,0,0,0,0,0,0,0,0,0,0,0,0,0,0,0,0,0,"00:00:00",0,9,0,0,0,0,0,0,0,0,0,0,0,0,0,0,0,0,0,0,0,0,0]
["00:00:00",0,10,0,0,0,0,0,0,0,0,0,0,0,0,0,0,0,0,0,0,0,0,0,"00:00:00",0,10,0,0,0,0,0,0,0,0,0,0,0,0,0,0,0,0,0,0,0,0,0]
["1900-01-07",0,1,0,0,0,0,0,0,0,0,0,0,0,0,0,0,0,0,0,0,0,0,0,"1900-01-07",0,1,0,0,0,0,0,0,0,0,0,0,0,0,0,0,0,0,0,0,0,0,0]
["1900-01-07",0,2,0,0,0,0,0,0,0,0,0,0,0,0,0,0,0,0,0,0,0,0,0,"1900-01-07",0,2,0,0,0,0,0,0,0,0,0,0,0,0,0,0,0,0,0,0,0,0,0]
["1900-01-07",0,3,0,0,0,0,0,0,0,0,0,0,0,0,0,0,0,0,0,0,0,0,0,"1900-01-07",0,3,0,0,0,0,0,0,0,0,0,0,0,0,0,0,0,0,0,0,0,0,0]
["1900-01-07",0,4,0,0,0,0,0,0,0,0,0,0,0,0,0,0,0,0,0,0,0,0,0,"1900-01-07",0,4,0,0,0,0,0,0,0,0,0,0,0,0,0,0,0,0,0,0,0,0,0]
["1900-01-07",0,5,0,0,0,0,0,0,0,0,0,0,0,0,0,0,0,0,0,0,0,0,0,"1900-01-07",0,5,0,0,0,0,0,0,0,0,0,0,0,0,0,0,0,0,0,0,0,0,0]
["1900-01-07",0,6,0,0,0,0,0,0,0,0,0,0,0,0,0,0,0,0,0,0,0,0,0,"1900-01-07",0,6,0,0,0,0,0,0,0,0,0,0,0,0,0,0,0,0,0,0,0,0,0]
["1900-01-07",0,7,0,0,0,0,0,0,0,0,0,0,0,0,0,0,0,0,0,0,0,0,0,"1900-01-07",0,7,0,0,0,0,0,0,0,0,0,0,0,0,0,0,0,0,0,0,0,0,0]
["1900-01-07",0,8,0,0,0,0,0,0,0,0,0,0,0,0,0,0,0,0,0,0,0,0,0,"1900-01-07",0,8,0,0,0,0,0,0,0,0,0,0,0,0,0,0,0,0,0,0,0,0,0]
["1900-01-07",0,9,0,0,0,0,0,0,0,0,0,0,0,0,0,0,0,0,0,0,0,0,0,"1900-01-07",0,9,0,0,0,0,0,0,0,0,0,0,0,0,0,0,0,0,0,0,0,0,0]
["1900-01-07",0,10,0,0,0,0,0,0,0,0,0,0,0,0,0,0,0,0,0,0,0,0,0,"1900-01-07",0,10,0,0,0,0,0,0,0,0,0,0,0,0,0,0,0,0,0,0,0,0,0]
["1900-01-14",0,1,0,0,0,0,0,0,0,0,0,0,0,0,0,0,0,0,0,0,0,0,0,"1900-01-14",0,1,0,0,0,0,0,0,0,0,0,0,0,0,0,0,0,0,0,0,0,0,0]
["1900-01-14",0,2,0,0,0,0,0,0,0,0,0,0,0,0,0,0,0,0,0,0,0,0,0,"1900-01-14",0,2,0,0,0,0,0,0,0,0,0,0,0,0,0,0,0,0,0,0,0,0,0]
["1900-01-14",0,3,0,0,0,0,0,0,0,0,0,0,0,0,0,0,0,0,0,0,0,0,0,"1900-01-14",0,3,0,0,0,0,0,0,0,0,0,0,0,0,0,0,0,0,0,0,0,0,0]
["1900-01-14",0,4,0,0,0,0,0,0,0,0,0,0,0,0,0,0,0,0,0,0,0,0,0,"1900-01-14",0,4,0,0,0,0,0,0,0,0,0,0,0,0,0,0,0,0,0,0,0,0,0]
["1900-01-14",0,5,0,0,0,0,0,0,0,0,0,0,0,0,0,0,0,0,0,0,0,0,0,"1900-01-14",0,5,0,0,0,0,0,0,0,0,0,0,0,0,0,0,0,0,0,0,0,0,0]
["1900-01-14",0,6,0,0,0,0,0,0,0,0,0,0,0,0,0,0,0,0,0,0,0,0,0,"1900-01-14",0,6,0,0,0,0,0,0,0,0,0,0,0,0,0,0,0,0,0,0,0,0,0]
["1900-01-14",0,7,0,0,0,0,0,0,0,0,0,0,0,0,0,0,0,0,0,0,0,0,0,"1900-01-14",0,7,0,0,0,0,0,0,0,0,0,0,0,0,0,0,0,0,0,0,0,0,0]
["1900-01-14",0,8,0,0,0,0,0,0,0,0,0,0,0,0,0,0,0,0,0,0,0,0,0,"1900-01-14",0,8,0,0,0,0,0,0,0,0,0,0,0,0,0,0,0,0,0,0,0,0,0]
["1900-01-14",0,9,0,0,0,0,0,0,0,0,0,0,0,0,0,0,0,0,0,0,0,0,0,"1900-01-14",0,9,0,0,0,0,0,0,0,0,0,0,0,0,0,0,0,0,0,0,0,0,0]
["1900-01-14",0,10,0,0,0,0,0,0,0,0,0,0,0,0,0,0,0,0,0,0,0,0,0,"1900-01-14",0,10,0,0,0,0,0,0,0,0,0,0,0,0,0,0,0,0,0,0,0,0,0]
["1900-01-21",0,1,0,0,0,0,0,0,0,0,0,0,0,0,0,0,0,0,0,0,0,0,0,"1900-01-21",0,1,0,0,0,0,0,0,0,0,0,0,0,0,0,0,0,0,0,0,0,0,0]
["1900-01-21",0,2,0,0,0,0,0,0,0,0,0,0,0,0,0,0,0,0,0,0,0,0,0,"1900-01-21",0,2,0,0,0,0,0,0,0,0,0,0,0,0,0,0,0,0,0,0,0,0,0]
["1900-01-21",0,3,0,0,0,0,0,0,0,0,0,0,0,0,0,0,0,0,0,0,0,0,0,"1900-01-21",0,3,0,0,0,0,0,0,0,0,0,0,0,0,0,0,0,0,0,0,0,0,0]
["1900-01-21",0,4,0,0,0,0,0,0,0,0,0,0,0,0,0,0,0,0,0,0,0,0,0,"1900-01-21",0,4,0,0,0,0,0,0,0,0,0,0,0,0,0,0,0,0,0,0,0,0,0]
["1900-01-21",0,5,0,0,0,0,0,0,0,0,0,0,0,0,0,0,0,0,0,0,0,0,0,"1900-01-21",0,5,0,0,0,0,0,0,0,0,0,0,0,0,0,0,0,0,0,0,0,0,0]
["1900-01-21",0,6,0,0,0,0,0,0,0,0,0,0,0,0,0,0,0,0,0,0,0,0,0,"1900-01-21",0,6,0,0,0,0,0,0,0,0,0,0,0,0,0,0,0,0,0,0,0,0,0]
["1900-01-21",0,7,0,0,0,0,0,0,0,0,0,0,0,0,0,0,0,0,0,0,0,0,0,"1900-01-21",0,7,0,0,0,0,0,0,0,0,0,0,0,0,0,0,0,0,0,0,0,0,0]
["1900-01-21",0,8,0,0,0,0,0,0,0,0,0,0,0,0,0,0,0,0,0,0,0,0,0,"1900-01-21",0,8,0,0,0,0,0,0,0,0,0,0,0,0,0,0,0,0,0,0,0,0,0]
["1900-01-21",0,9,0,0,0,0,0,0,0,0,0,0,0,0,0,0,0,0,0,0,0,0,0,"1900-01-21",0,9,0,0,0,0,0,0,0,0,0,0,0,0,0,0,0,0,0,0,0,0,0]
["1900-01-21",0,10,0,0,0,0,0,0,0,0,0,0,0,0,0,0,0,0,0,0,0,0,0,"1900-01-21",0,10,0,0,0,0,0,0,0,0,0,0,0,0,0,0,0,0,0,0,0,0,0]
["1900-01-28",0,1,0,0,0,0,0,0,0,0,0,0,0,0,0,0,0,0,0,0,0,0,0,"1900-01-28",0,1,0,0,0,0,0,0,0,0,0,0,0,0,0,0,0,0,0,0,0,0,0]
["1900-01-28",0,2,0,0,0,0,0,0,0,0,0,0,0,0,0,0,0,0,0,0,0,0,0,"1900-01-28",0,2,0,0,0,0,0,0,0,0,0,0,0,0,0,0,0,0,0,0,0,0,0]
["1900-01-28",0,3,0,0,0,0,0,0,0,0,0,0,0,0,0,0,0,0,0,0,0,0,0,"1900-01-28",0,3,0,0,0,0,0,0,0,0,0,0,0,0,0,0,0,0,0,0,0,0,0]
["1900-01-28",0,4,0,0,0,0,0,0,0,0,0,0,0,0,0,0,0,0,0,0,0,0,0,"1900-01-28",0,4,0,0,0,0,0,0,0,0,0,0,0,0,0,0,0,0,0,0,0,0,0]
["1900-01-28",0,5,0,0,0,0,0,0,0,0,0,0,0,0,0,0,0,0,0,0,0,0,0,"1900-01-28",0,5,0,0,0,0,0,0,0,0,0,0,0,0,0,0,0,0,0,0,0,0,0]
["1900-01-28",0,6,0,0,0,0,0,0,0,0,0,0,0,0,0,0,0,0,0,0,0,0,0,"1900-01-28",0,6,0,0,0,0,0,0,0,0,0,0,0,0,0,0,0,0,0,0,0,0,0]
["1900-01-28",0,7,0,0,0,0,0,0,0,0,0,0,0,0,0,0,0,0,0,0,0,0,0,"1900-01-28",0,7,0,0,0,0,0,0,0,0,0,0,0,0,0,0,0,0,0,0,0,0,0]
["1900-01-28",0,8,0,0,0,0,0,0,0,0,0,0,0,0,0,0,0,0,0,0,0,0,0,"1900-01-28",0,8,0,0,0,0,0,0,0,0,0,0,0,0,0,0,0,0,0,0,0,0,0]
["1900-01-28",0,9,0,0,0,0,0,0,0,0,0,0,0,0,0,0,0,0,0,0,0,0,0,"1900-01-28",0,9,0,0,0,0,0,0,0,0,0,0,0,0,0,0,0,0,0,0,0,0,0]
["1900-01-28",0,10,0,0,0,0,0,0,0,0,0,0,0,0,0,0,0,0,0,0,0,0,0,"1900-01-28",0,10,0,0,0,0,0,0,0,0,0,0,0,0,0,0,0,0,0,0,0,0,0]
["1900-02-04",0,1,0,0,0,0,0,0,0,0,0,0,0,0,0,0,0,0,0,0,0,0,0,"1900-02-04",0,1,0,0,0,0,0,0,0,0,0,0,0,0,0,0,0,0,0,0,0,0,0]
["1900-02-04",0,2,0,0,0,0,0,0,0,0,0,0,0,0,0,0,0,0,0,0,0,0,0,"1900-02-04",0,2,0,0,0,0,0,0,0,0,0,0,0,0,0,0,0,0,0,0,0,0,0]
["1900-02-04",0,3,0,0,0,0,0,0,0,0,0,0,0,0,0,0,0,0,0,0,0,0,0,"1900-02-04",0,3,0,0,0,0,0,0,0,0,0,0,0,0,0,0,0,0,0,0,0,0,0]
["1900-02-04",0,4,0,0,0,0,0,0,0,0,0,0,0,0,0,0,0,0,0,0,0,0,0,"1900-02-04",0,4,0,0,0,0,0,0,0,0,0,0,0,0,0,0,0,0,0,0,0,0,0]
["1900-02-04",0,5,0,0,0,0,0,0,0,0,0,0,0,0,0,0,0,0,0,0,0,0,0,"1900-02-04",0,5,0,0,0,0,0,0,0,0,0,0,0,0,0,0,0,0,0,0,0,0,0]
["1900-02-04",0,6,0,0,0,0,0,0,0,0,0,0,0,0,0,0,0,0,0,0,0,0,0,"1900-02-04",0,6,0,0,0,0,0,0,0,0,0,0,0,0,0,0,0,0,0,0,0,0,0]
["1900-02-04",0,7,0,0,0,0,0,0,0,0,0,0,0,0,0,0,0,0,0,0,0,0,0,"1900-02-04",0,7,0,0,0,0,0,0,0,0,0,0,0,0,0,0,0,0,0,0,0,0,0]
["1900-02-04",0,8,0,0,0,0,0,0,0,0,0,0,0,0,0,0,0,0,0,0,0,0,0,"1900-02-04",0,8,0,0,0,0,0,0,0,0,0,0,0,0,0,0,0,0,0,0,0,0,0]
["1900-02-04",0,9,0,0,0,0,0,0,0,0,0,0,0,0,0,0,0,0,0,0,0,0,0,"1900-02-04",0,9,0,0,0,0,0,0,0,0,0,0,0,0,0,0,0,0,0,0,0,0,0]
["1900-02-04",0,10,0,0,0,0,0,0,0,0,0,0,0,0,0,0,0,0,0,0,0,0,0,"1900-02-04",0,10,0,0,0,0,0,0,0,0,0,0,0,0,0,0,0,0,0,0,0,0,0]
["1900-02-11",0,1,0,0,0,0,0,0,0,0,0,0,0,0,0,0,0,0,0,0,0,0,0,"1900-02-11",0,1,0,0,0,0,0,0,0,0,0,0,0,0,0,0,0,0,0,0,0,0,0]
["1900-02-11",0,2,0,0,0,0,0,0,0,0,0,0,0,0,0,0,0,0,0,0,0,0,0,"1900-02-11",0,2,0,0,0,0,0,0,0,0,0,0,0,0,0,0,0,0,0,0,0,0,0]
["1900-02-11",0,3,0,0,0,0,0,0,0,0,0,0,0,0,0,0,0,0,0,0,0,0,0,"1900-02-11",0,3,0,0,0,0,0,0,0,0,0,0,0,0,0,0,0,0,0,0,0,0,0]
["1900-02-11",0,4,0,0,0,0,0,0,0,0,0,0,0,0,0,0,0,0,0,0,0,0,0,"1900-02-11",0,4,0,0,0,0,0,0,0,0,0,0,0,0,0,0,0,0,0,0,0,0,0]
["1900-02-11",0,5,0,0,0,0,0,0,0,0,0,0,0,0,0,0,0,0,0,0,0,0,0,"1900-02-11",0,5,0,0,0,0,0,0,0,0,0,0,0,0,0,0,0,0,0,0,0,0,0]
["1900-02-11",0,6,0,0,0,0,0,0,0,0,0,0,0,0,0,0,0,0,0,0,0,0,0,{"$f":"A67","v":"1900-02-11"},{"$f":"B67","v":0},{"$f":"C67","v":6},{"$f":"D67","v":0},{"$f":"IF(F67=\"y\",1,0)","v":0},{"$f":"IF(G67=\"y\",1,0)","v":0},{"$f":"IF(H67=\"y\",1,0)","v":0},{"$f":"IF(I67=\"y\",1,0)","v":0},{"$f":"IF(J67=\"y\",1,0)","v":0},{"$f":"IF(K67=\"y\",1,0)","v":0},{"$f":"IF(L67=\"y\",1,0)","v":0},{"$f":"IF(M67=\"y\",1,0)","v":0},{"$f":"IF(N67=\"y\",1,0)","v":0},{"$f":"IF(O67=\"y\",1,0)","v":0},{"$f":"IF(P67=\"y\",1,0)","v":0},{"$f":"IF(Q67=\"y\",1,0)","v":0},{"$f":"IF(R67=\"y\",1,0)","v":0},{"$f":"IF(S67=\"y\",1,0)","v":0},{"$f":"IF(T67=\"y\",1,0)","v":0},{"$f":"IF(U67=\"y\",1,0)","v":0},{"$f":"IF(V67=\"y\",1,0)","v":0},{"$f":"IF(W67=\"y\",1,0)","v":0},{"$f":"IF(X67=\"y\",1,0)","v":0},{"$f":"IF(COUNTIF(D67:S67,\"*\")>0,1,0)","v":0}]
["1900-02-11",0,7,0,0,0,0,0,0,0,0,0,0,0,0,0,0,0,0,0,0,0,0,0,"1900-02-11",0,7,0,0,0,0,0,0,0,0,0,0,0,0,0,0,0,0,0,0,0,0,0]
["1900-02-11",0,8,0,0,0,0,0,0,0,0,0,0,0,0,0,0,0,0,0,0,0,0,0,"1900-02-11",0,8,0,0,0,0,0,0,0,0,0,0,0,0,0,0,0,0,0,0,0,0,0]
["1900-02-11",0,9,0,0,0,0,0,0,0,0,0,0,0,0,0,0,0,0,0,0,0,0,0,"1900-02-11",0,9,0,0,0,0,0,0,0,0,0,0,0,0,0,0,0,0,0,0,0,0,0]
["1900-02-11",0,10,0,0,0,0,0,0,0,0,0,0,0,0,0,0,0,0,0,0,0,0,0,"1900-02-11",0,10,0,0,0,0,0,0,0,0,0,0,0,0,0,0,0,0,0,0,0,0,0]

{"sheet":"Template","index":8,"n_rows":28,"n_cols":73,"rows_kept":28,"cut":false,"hidden":true,"merged":[[3,63,3,72],[3,53,3,62],[3,3,3,12],[3,13,3,22],[3,23,3,32],[3,33,3,42],[3,43,3,52]]}
[null,"National maternity vital sign chart audit tool"]
[null,"Ward:"]
[]
[1,null,"Week starting",{"$f":"ControlPage!$B$5","v":"00:00:00"},null,null,null,null,null,null,null,null,null,{"$f":"D4+7","v":"1900-01-07"},null,null,null,null,null,null,null,null,null,{"$f":"N4+7","v":"1900-01-14"},null,null,null,null,null,null,null,null,null,{"$f":"X4+7","v":"1900-01-21"},null,null,null,null,null,null,null,null,null,{"$f":"AH4+7","v":"1900-01-28"},null,null,null,null,null,null,null,null,null,{"$f":"AR4+7","v":"1900-02-04"},null,null,null,null,null,null,null,null,null,{"$f":"BB4+7","v":"1900-02-11"}]
[2,null,"Week",{"$f":"D4","v":"00:00:00"},{"$f":"D5","v":"00:00:00"},{"$f":"E5","v":"00:00:00"},"00:00:00","00:00:00","00:00:00","00:00:00","00:00:00","00:00:00","00:00:00",{"$f":"N4","v":"1900-01-07"},{"$f":"N5","v":"1900-01-07"},{"$f":"O5","v":"1900-01-07"},"1900-01-07","1900-01-07","1900-01-07","1900-01-07","1900-01-07","1900-01-07","1900-01-07",{"$f":"X4","v":"1900-01-14"},{"$f":"X5","v":"1900-01-14"},{"$f":"Y5","v":"1900-01-14"},"1900-01-14","1900-01-14","1900-01-14","1900-01-14","1900-01-14","1900-01-14","1900-01-14",{"$f":"AH4","v":"1900-01-21"},{"$f":"AH5","v":"1900-01-21"},"1900-01-21","1900-01-21","1900-01-21","1900-01-21","1900-01-21","1900-01-21","1900-01-21","1900-01-21",{"$f":"AR4","v":"1900-01-28"},{"$f":"AR5","v":"1900-01-28"},"1900-01-28","1900-01-28","1900-01-28","1900-01-28","1900-01-28","1900-01-28","1900-01-28","1900-01-28",{"$f":"BB4","v":"1900-02-04"},{"$f":"BB5","v":"1900-02-04"},{"$f":"BC5","v":"1900-02-04"},{"$f":"BD5","v":"1900-02-04"},{"$f":"BE5","v":"1900-02-04"},{"$f":"BF5","v":"1900-02-04"},{"$f":"BG5","v":"1900-02-04"},{"$f":"BH5","v":"1900-02-04"},{"$f":"BI5","v":"1900-02-04"},{"$f":"BJ5","v":"1900-02-04"},{"$f":"BL4","v":"1900-02-11"},{"$f":"BL5","v":"1900-02-11"},{"$f":"BM5","v":"1900-02-11"},{"$f":"BN5","v":"1900-02-11"},{"$f":"BO5","v":"1900-02-11"},{"$f":"BP5","v":"1900-02-11"},{"$f":"BQ5","v":"1900-02-11"},{"$f":"BR5","v":"1900-02-11"},{"$f":"BS5","v":"1900-02-11"},{"$f":"BT5","v":"1900-02-11"}]
[3,null,"Ward",{"$f":"$C$2","v":0},{"$f":"$C$2","v":0},0,0,0,0,0,0,0,0,0,0,0,0,0,0,0,0,0,0,0,0,0,0,0,0,0,0,0,0,0,0,0,0,0,0,0,0,0,0,0,0,0,0,0,0,0,0,0,0,0,0,0,0,0,0,0,0,0,0,0,0,0,0,0,{"$f":"$C$2","v":0},0,0,0,0]
[4,null,"Case number",1,2,3,4,5,6,7,8,9,10,1,2,3,4,5,6,7,8,9,10,1,2,3,4,5,6,7,8,9,10,1,2,3,4,5,6,7,8,9,10,1,2,3,4,5,6,7,8,9,10,1,2,3,4,5,6,7,8,9,10,1,2,3,4,5,6,7,8,9,10]
[5,null,"Ethnicity"]
[6,null,"Recognition"]
[7,1,"Was the frequency of vital sign monitoring appropriate for the woman?"]
[8,2,"Was the core vital sign set completed for the most recent set of vital signs? \n(if no, complete questions 2a-2h to record which vital signs were present)"]
[null,"2a","Respiratory rate"]
[null,"2b","Oxygen"]
[null,"2c","Oxygen saturation"]
[null,"2d","Heart rate"]
[null,"2e","Systolic blood pressure"]
[null,"2f","Diastolic blood pressure"]
[null,"2g","Temperature"]
[null,"2h","Level of consciousness"]
[9,3,"Was the maternity early warning score (MEWS) calculated correctly for the most recent set of vital signs?"]
[10,4,"Were any modifications made to the MEWS triggers? (if yes, complete questions 4a and 4b)"]
[11,"4a","Was a rationale and duration for the modification documented? (clinical requirements)"]
[12,"4b","Did the person making the modification legibly date and sign it, and record contact details? (documentation requirements)"]
[13,null,"Escalation and response"]
[14,5,"Did the woman reach any of the defined triggers for escalation in, or up to, the 24-hour audit period?  (If no, audit is complete; if yes, complete questions 5a-c)"]
[15,"5a","Did escalation occur according to the pathway?"]
[16,"5b","Did the response occur according to the pathway?"]
[17,"5c","Did the responder complete documentation requirements (according to local policy)?"]

{"sheet":"Lists","index":9,"n_rows":11,"n_cols":2,"rows_kept":11,"cut":false,"hidden":true,"merged":[]}
["Ethnicity"]
["M","Māori"]
["P","Pacific"]
["A","Asian"]
["E","European"]
["O","Other"]
["R","Residual Categories"]
[]
["Yes/No"]
["y"]
["n"]